fUSD/lending_fUSD_20260129
["ID","MTS","AMOUNT","RATE_DAILY","PERIOD"]
[403968988,1769699447243,-1500.0,0.00017068,2]
[403968990,1769699447257,-1500.0,0.00017068,2]
[403968992,1769699447270,-1500.0,0.00017068,2]
[403968994,1769699447280,-502.95752889,0.00017068,2]
[403968996,1769699447290,-219.30410898,0.00017068,2]
[403968998,1769699447300,-300.0,0.00017096,3]
[403969000,1769699447310,-500.0,0.00017098,2]
[403969002,1769699447320,-500.0,0.00017098,2]
[403969004,1769699447332,-228.39138238,0.00017099,2]
[403969006,1769699447342,-280.34589968,0.00017099,2]
[403969008,1769699447351,-174.61919141,0.00017099,2]
[403969010,1769699447361,-721.12765535,0.00017099,2]
[403969013,1769699447371,-500.0,0.00017099,2]
[403969015,1769699447382,-500.0,0.00017099,2]
[403969017,1769699447392,-500.0,0.00017099,2]
[403969019,1769699447402,-500.0,0.00017099,2]
[403969021,1769699447412,-500.0,0.00017099,2]
[403969023,1769699447422,-500.0,0.00017099,2]
[403969025,1769699447432,-500.0,0.00017099,2]
[403969027,1769699447442,-500.0,0.00017099,2]
[403969029,1769699447452,-500.0,0.00017099,2]
[403969031,1769699447462,-500.0,0.00017099,2]
[403969033,1769699447472,-500.0,0.00017099,2]
[403969035,1769699447481,-500.0,0.00017099,2]
[403969037,1769699447490,-250.0,0.00017099,2]
[403969039,1769699447500,-500.0,0.00017099,2]
[403969041,1769699447509,-500.0,0.00017099,2]
[403969043,1769699447524,-500.0,0.00017099,2]
[403969045,1769699447533,-250.0,0.00017099,2]
[403969047,1769699447542,-854.2589148,0.00017099,2]
[403969049,1769699447552,-500.0,0.00017099,2]
[403969051,1769699447561,-500.0,0.00017099,2]
[403969053,1769699447571,-250.0,0.00017099,2]
[403969055,1769699447581,-250.0,0.00017099,2]
[403969057,1769699447590,-1000.0,0.00017099,2]
[403969059,1769699447599,-202.66289745,0.00017099,2]
[403969061,1769699447608,-500.0,0.00017099,2]
[403969063,1769699447618,-250.0,0.00017099,2]
[403969065,1769699447628,-250.0,0.00017099,2]
[403969067,1769699447638,-1000.0,0.00017099,2]
[403969069,1769699447647,-500.0,0.00017099,2]
[403969071,1769699447657,-250.0,0.00017099,2]
[403969073,1769699447667,-250.0,0.00017099,2]
[403969075,1769699447676,-1000.0,0.00017099,2]
[403969077,1769699447686,-250.0,0.00017099,2]
[403969079,1769699447695,-250.0,0.00017099,2]
[403969081,1769699447706,-500.0,0.00017099,2]
[403969083,1769699447716,-1000.0,0.00017099,2]
[403969085,1769699447726,-250.0,0.00017099,2]
[403969087,1769699447735,-250.0,0.00017099,2]
[403969089,1769699447745,-1000.0,0.00017099,2]
[403969091,1769699447755,-209.40437684,0.00017099,2]
[403969093,1769699447767,-250.0,0.00017099,2]
[403969095,1769699447777,-250.0,0.00017099,2]
[403969097,1769699447787,-1000.0,0.00017099,2]
[403969099,1769699447798,-250.0,0.00017099,2]
[403969101,1769699447808,-250.0,0.00017099,2]
[403969103,1769699447818,-1000.0,0.00017099,2]
[403969105,1769699447828,-250.0,0.00017099,2]
[403969107,1769699447838,-250.0,0.00017099,2]
[403969109,1769699447848,-250.0,0.00017099,2]
[403969111,1769699447857,-1000.0,0.00017099,2]
[403969113,1769699447867,-250.0,0.00017099,2]
[403969115,1769699447876,-1000.0,0.00017099,2]
[403969117,1769699447885,-250.0,0.00017099,2]
[403969119,1769699447895,-1000.0,0.00017099,2]
[403969121,1769699447904,-250.0,0.00017099,2]
[403969123,1769699447915,-1000.0,0.00017099,2]
[403969125,1769699447925,-578.20924308,0.00017099,2]
[403969127,1769699447934,-250.0,0.00017099,2]
[403969129,1769699447943,-250.0,0.00017099,2]
[403969131,1769699447953,-250.0,0.00017099,2]
[403969133,1769699447962,-250.0,0.00017099,2]
[403969135,1769699447972,-500.0,0.00017099,2]
[403969137,1769699447981,-250.0,0.00017099,2]
[403969139,1769699447989,-500.0,0.00017099,2]
[403969141,1769699447998,-250.0,0.00017099,2]
[403969143,1769699448006,-322.6107,0.00017099,2]
[403969145,1769699448015,-500.0,0.00017099,2]
[403969147,1769699448024,-250.0,0.00017099,2]
[403969149,1769699448033,-500.0,0.00017099,2]
[403969151,1769699448043,-250.0,0.00017099,2]
[403969153,1769699448053,-500.0,0.00017099,2]
[403969155,1769699448062,-250.0,0.00017099,2]
[403969157,1769699448072,-500.0,0.00017099,2]
[403969159,1769699448081,-250.0,0.00017099,2]
[403969161,1769699448090,-500.0,0.00017099,2]
[403969163,1769699448100,-250.0,0.00017099,2]
[403969165,1769699448109,-500.0,0.00017099,2]
[403969167,1769699448118,-250.0,0.00017099,2]
[403969169,1769699448127,-500.0,0.00017099,2]
[403969171,1769699448137,-250.0,0.00017099,2]
[403969173,1769699448146,-500.0,0.00017099,2]
[403969175,1769699448155,-250.0,0.00017099,2]
[403969177,1769699448164,-500.0,0.00017099,2]
[403969179,1769699448174,-209.40437684,0.00017099,2]
[403969181,1769699448183,-250.0,0.00017099,2]
[403969183,1769699448192,-250.0,0.00017099,2]
[403969185,1769699448202,-250.0,0.00017099,2]
[403969187,1769699448211,-250.0,0.00017099,2]
[403969188,1769699448221,-250.0,0.00017099,2]
[403969189,1769699448231,-250.0,0.00017099,2]
[403969190,1769699448241,-209.40437684,0.00017099,2]
[403969191,1769699448253,-250.0,0.00017099,2]
[403969193,1769699448265,-151.0,0.00017099,2]
[403969196,1769699448276,-250.0,0.00017099,2]
[403969198,1769699448286,-151.6879126,0.00017099,2]
[403969200,1769699448297,-500.0,0.00017099,2]
[403969202,1769699448307,-500.0,0.00017099,2]
[403969204,1769699448318,-500.0,0.00017099,2]
[403969206,1769699448329,-500.0,0.00017099,2]
[403969208,1769699448339,-500.0,0.00017099,2]
[403969210,1769699448349,-500.0,0.00017099,2]
[403969212,1769699448359,-500.0,0.00017099,2]
[403969214,1769699448368,-500.0,0.00017099,2]
[403969216,1769699448378,-209.40437684,0.00017099,2]
[403969218,1769699448387,-500.0,0.00017099,2]
[403969220,1769699448397,-500.0,0.00017099,2]
[403969222,1769699448406,-500.0,0.00017099,2]
[403969224,1769699448416,-1000.0,0.00017112,2]
[403969226,1769699448425,-1478.55,0.00017125,2]
[403969228,1769699448435,-2351.0,0.00017126,2]
[403969230,1769699448444,-1705.01812569,0.00017132,2]
[403969232,1769699448454,-217.15233878,0.00017154,2]
[403969264,1769699448748,-500.0,0.00017157,2]
[403969266,1769699448760,-500.0,0.00017205,2]
[403969268,1769699448771,-225.18697532,0.00017209,2]
[403969270,1769699448783,-14335.32298126,0.00017223,2]
[403969272,1769699448793,-160.46,0.00017255,2]
[403969274,1769699448803,-233.51889341,0.00017264,2]
[403969276,1769699448814,-980.84548067,0.00017293,2]
[403969279,1769699448824,-242.15909246,0.00017319,2]
[403969280,1769699448834,-165.61,0.00017321,2]
[403969282,1769699448844,-233.50440611,0.00017365,2]
[403969285,1769699448854,-251.11897888,0.00017374,2]
[403969287,1769699448864,-1416.0,0.00017377,2]
[403969289,1769699448874,-1478.55,0.00017399,2]
[403969291,1769699448884,-152.3,0.000174,2]
[403969293,1769699448894,-152.3,0.000174,2]
[403969295,1769699448904,-152.3,0.000174,2]
[403969297,1769699448914,-152.3,0.000174,2]
[403969299,1769699448923,-152.3,0.000174,2]
[403969301,1769699448933,-152.3,0.000174,2]
[403969303,1769699448943,-152.3,0.000174,2]
[403969305,1769699448953,-152.3,0.000174,2]
[403969307,1769699448963,-152.3,0.000174,2]
[403969309,1769699448973,-152.3,0.000174,2]
[403969311,1769699448982,-152.3,0.000174,2]
[403969313,1769699448992,-152.3,0.000174,2]
[403969315,1769699449001,-8500.0,0.000174,6]
[403969317,1769699449010,-1660.17763539,0.0001742,2]
[403969319,1769699449021,-260.4103811,0.00017429,2]
[403969321,1769699449031,-5681.0,0.00017443,2]
[403969323,1769699449040,-5681.0,0.00017455,2]
[403969325,1769699449050,-14687.93249224,0.00017473,2]
[403969327,1769699449059,-500.0,0.00017483,2]
[403969329,1769699449069,-270.0455652,0.00017484,2]
[403969331,1769699449079,-271.20295196,0.00017487,2]
[403969333,1769699449089,-1700.0,0.000175,6]
[403969335,1769699449098,-379.0,0.00017513,2]
[403969337,1769699449107,-250.0,0.00017531,2]
[403969339,1769699449117,-1600.0,0.00017534,2]
[403969341,1769699449126,-280.03725112,0.00017539,2]
[403969343,1769699449135,-290.39862941,0.00017594,2]
[403969345,1769699449145,-1700.0,0.000176,6]
[403969347,1769699449154,-2086.30801186,0.00017608,2]
[403969349,1769699449163,-2000.0,0.00017616,2]
[403969351,1769699449172,-2000.0,0.00017616,2]
[403969353,1769699449182,-512.0030697,0.00017616,2]
[403969355,1769699449191,-24253.17423452,0.00017624,2]
[403969357,1769699449201,-2986.73035102,0.0001764,2]
[403969359,1769699449210,-25000.0,0.00017645,3]
[403969361,1769699449220,-181.08010149,0.00017647,2]
[403969363,1769699449229,-885.86649465,0.00017647,2]
[403969365,1769699449239,-188.60518727,0.00017647,2]
[403969367,1769699449249,-217.15233878,0.00017647,2]
[403969369,1769699449261,-151.0,0.00017647,2]
[403969371,1769699449271,-367.66577198,0.00017647,2]
[403969373,1769699449280,-301.1433787,0.00017649,2]
[403969375,1769699449289,-25000.0,0.00017654,3]
[403969377,1769699449299,-25000.0,0.00017662,3]
[403969379,1769699449308,-25000.0,0.00017671,3]
[403969381,1769699449317,-1478.55,0.00017673,2]
[403969383,1769699449326,-25000.0,0.0001768,3]
[403969385,1769699449338,-25000.0,0.00017689,3]
[403969387,1769699449347,-25000.0,0.00017698,3]
[403969389,1769699449356,-1700.0,0.000177,6]
[403969391,1769699449365,-25000.0,0.00017706,3]
[403969393,1769699449374,-1000.0,0.00017709,2]
[403969395,1769699449383,-1416.0,0.00017712,2]
[403969397,1769699449392,-379.0,0.00017713,2]
[403969399,1769699449402,-500.0,0.00017714,2]
[403969401,1769699449411,-25000.0,0.00017715,3]
[403969403,1769699449420,-21444.78584061,0.00017723,2]
[403969405,1769699449429,-29015.5536,0.00017723,2]
[403969407,1769699449439,-25000.0,0.00017724,3]
[403969409,1769699449448,-1135.16674727,0.00017732,5]
[403969411,1769699449458,-25000.0,0.00017733,3]
[403969413,1769699449467,-385.0,0.00017736,2]
[403969414,1769699449476,-385.0,0.00017738,2]
[403969416,1769699449485,-379.0,0.00017738,2]
[403969418,1769699449495,-223.87401932,0.0001774,2]
[403969420,1769699449505,-25000.0,0.00017742,3]
[403969422,1769699449517,-25000.0,0.00017742,3]
[403969424,1769699449526,-385.0,0.00017747,2]
[403969426,1769699449536,-25000.0,0.0001775,3]
[403969428,1769699449546,-25000.0,0.0001775,3]
[403969430,1769699449555,-379.0,0.00017751,2]
[403969432,1769699449565,-5681.0,0.00017753,2]
[403969434,1769699449575,-385.0,0.00017754,2]
[403969436,1769699449584,-2086.30801185,0.00017754,2]
[403969438,1769699449593,-25000.0,0.00017759,3]
[403969440,1769699449602,-25000.0,0.00017759,3]
[403969442,1769699449612,-24253.17423452,0.00017762,2]
[403969444,1769699449622,-151.0,0.00017765,2]
[403969446,1769699449631,-25000.0,0.00017768,3]
[403969448,1769699449641,-25000.0,0.00017777,3]
[403969450,1769699449651,-411.0,0.00017777,2]
[403969452,1769699449660,-736.0,0.00017777,2]
[403969455,1769699449670,-385.0,0.00017783,2]
[403969456,1769699449679,-25000.0,0.00017786,3]
[403969458,1769699449688,-379.0,0.00017787,2]
[403969460,1769699449698,-25000.0,0.00017794,3]
[403969462,1769699449707,-379.0,0.00017799,2]
[403969465,1769699449716,-385.0,0.000178,2]
[403969466,1769699449726,-1700.0,0.000178,6]
[403969468,1769699449735,-25000.0,0.00017803,3]
[403969470,1769699449745,-500.0,0.00017808,2]
[403969472,1769699449755,-250.0,0.00017808,5]
[403969474,1769699449765,-250.0,0.00017808,5]
[403969476,1769699449774,-250.0,0.00017808,5]
[403969478,1769699449784,-250.0,0.00017808,5]
[403969480,1769699449793,-250.0,0.00017808,5]
[403969482,1769699449803,-250.0,0.00017808,5]
[403969485,1769699449813,-250.0,0.00017808,5]
[403969487,1769699449823,-250.0,0.00017808,5]
[403969489,1769699449833,-250.0,0.00017808,5]
[403969491,1769699449842,-250.0,0.00017808,5]
[403969492,1769699449852,-250.0,0.00017808,5]
[403969494,1769699449862,-250.0,0.00017808,5]
[403969497,1769699449871,-250.0,0.00017808,5]
[403969498,1769699449881,-187.517907,0.00017808,5]
[403969500,1769699449891,-25000.0,0.00017812,3]
[403969502,1769699449900,-1333.33333,0.0001782,2]
[403969505,1769699449910,-1333.33333,0.0001782,2]
[403969507,1769699449920,-25000.0,0.00017821,3]
[403969509,1769699449929,-379.0,0.00017825,2]
[403969511,1769699449938,-385.0,0.00017829,2]
[403969512,1769699449948,-159.26,0.00017829,2]
[403969515,1769699449959,-25000.0,0.0001783,3]
[403969516,1769699449968,-385.0,0.00017835,2]
[403969518,1769699449977,-25000.0,0.00017838,3]
[403969520,1769699449987,-500.0,0.00017846,2]
[403969523,1769699449996,-25000.0,0.00017847,3]
[403969524,1769699450006,-159.26,0.00017849,2]
[403969526,1769699450017,-379.0,0.00017852,2]
[403969529,1769699450027,-385.0,0.00017854,2]
[403969531,1769699450036,-200.0,0.00017855,2]
[403969533,1769699450046,-200.0,0.00017856,2]
[403969535,1769699450056,-200.0,0.00017856,2]
[403969537,1769699450065,-25000.0,0.00017856,3]
[403969539,1769699450075,-530.31899142,0.00017858,2]
[403969541,1769699450086,-379.0,0.00017858,2]
[403969543,1769699450096,-500.0,0.00017863,2]
[403969544,1769699450106,-25000.0,0.00017865,3]
[403969547,1769699450115,-159.26,0.00017869,2]
[403969549,1769699450125,-25000.0,0.00017874,3]
[403969551,1769699450134,-500.0,0.00017877,2]
[403969553,1769699450144,-160.46,0.00017882,2]
[403969555,1769699450154,-25000.0,0.00017882,3]
[403969557,1769699450164,-500.0,0.0001789,2]
[403969559,1769699450174,-25000.0,0.00017891,3]
[403969560,1769699450183,-1416.0,0.00017891,2]
[403969563,1769699450193,-647.66859598,0.00017899,2]
[403969564,1769699450202,-500.0,0.00017899,2]
[403969567,1769699450212,-1016.46476525,0.000179,2]
[403969569,1769699450221,-980.84548067,0.000179,2]
[403969570,1769699450230,-25000.0,0.000179,3]
[403969573,1769699450242,-1903.0,0.000179,6]
[403969575,1769699450256,-14687.93249224,0.000179,2]
[403969577,1769699450268,-200.40788804,0.000179,2]
[403969579,1769699450277,-2086.30801185,0.000179,2]
[403969581,1769699450286,-24253.17423452,0.000179,2]
[403969583,1769699450297,-1705.01812569,0.000179,2]
[403969585,1769699450307,-379.0,0.0001791,2]
[403969587,1769699450316,-385.0,0.00017912,2]
[403969589,1769699450329,-385.0,0.00017917,2]
[403969591,1769699450338,-500.0,0.00017918,2]
[403969593,1769699450348,-379.0,0.00017922,2]
[403969595,1769699450358,-153.32539,0.00017928,2]
[403969597,1769699450367,-252.41839663,0.00017934,2]
[403969598,1769699450377,-385.0,0.00017934,2]
[403969600,1769699450387,-385.0,0.00017939,2]
[403969603,1769699450396,-385.0,0.00017943,2]
[403969605,1769699450406,-1478.55,0.00017947,2]
[403969607,1769699450415,-500.0,0.00017954,2]
[403969609,1769699450424,-558.58231824,0.00017954,2]
[403969611,1769699450433,-13678.6960492,0.00017955,2]
[403969612,1769699450443,-478831.821285,0.00017955,2]
[403969614,1769699450451,-1916.8714075,0.00017955,2]
[403969616,1769699450461,-138568.3636,0.00017955,2]
[403969618,1769699450470,-151.0,0.00017955,2]
[403969620,1769699450480,-151.0,0.00017955,2]
[403969622,1769699450489,-151.0,0.00017955,2]
[403969624,1769699450499,-385.0,0.00017966,2]
[403969626,1769699450508,-379.0,0.00017969,2]
[403969628,1769699450519,-500.0,0.00017972,2]
[403969630,1769699450529,-500.0,0.00017973,2]
[403969632,1769699450538,-500.0,0.00017973,2]
[403969634,1769699450547,-500.0,0.00017973,2]
[403969636,1769699450558,-500.0,0.00017973,2]
[403969639,1769699450567,-500.0,0.00017973,2]
[403969641,1769699450577,-500.0,0.00017973,2]
[403969643,1769699450586,-500.0,0.00017973,2]
[403969644,1769699450596,-308.69388935,0.00017973,2]
[403969716,1769699451403,-191.30611065,0.00017973,2]
[403969718,1769699451413,-500.0,0.00017973,2]
[403969719,1769699451423,-500.0,0.00017973,2]
[403969721,1769699451432,-500.0,0.00017973,2]
[403969724,1769699451441,-500.0,0.00017973,2]
[403969725,1769699451451,-500.0,0.00017973,2]
[403969728,1769699451461,-500.0,0.00017973,2]
[403969730,1769699451471,-500.0,0.00017973,2]
[403969731,1769699451480,-515.88206341,0.00017973,2]
[403969733,1769699451489,-500.0,0.00017973,2]
[403969735,1769699451498,-500.0,0.00017973,2]
[403969738,1769699451508,-504.20951303,0.00017973,2]
[403969740,1769699451518,-500.0,0.00017973,2]
[403969741,1769699451528,-160.09303877,0.00017973,2]
[403969743,1769699451537,-160.53394236,0.00017973,2]
[403969746,1769699451547,-500.0,0.00017973,2]
[403969747,1769699451566,-500.0,0.00017973,2]
[403969750,1769699451587,-500.0,0.00017973,2]
[403969752,1769699451598,-500.0,0.00017973,2]
[403969753,1769699451607,-500.0,0.00017973,2]
[403969755,1769699451618,-501.28378078,0.00017973,2]
[403969757,1769699451627,-500.0,0.00017973,2]
[403969759,1769699451637,-558.2762163,0.00017973,2]
[403969761,1769699451649,-500.0,0.00017973,2]
[403969763,1769699451658,-340.00717481,0.00017973,2]
[403969765,1769699451673,-500.0,0.00017973,2]
[403969767,1769699451684,-158.05561362,0.00017973,2]
[403969770,1769699451697,-500.0,0.00017973,2]
[403969772,1769699451708,-502.44429427,0.00017973,2]
[403969774,1769699451717,-385.0,0.00017977,2]
[403969776,1769699451727,-385.0,0.00017979,2]
[403969778,1769699451736,-222.93137113,0.00017982,2]
[403969780,1769699451745,-500.0,0.00017982,2]
[403969782,1769699451755,-385.0,0.00017984,2]
[403969784,1769699451766,-223.87401932,0.0001799,2]
[403969786,1769699451775,-379.0,0.00017994,2]
[403969788,1769699451784,-500.0,0.00017994,2]
[403969790,1769699451794,-500.0,0.00017994,2]
[403969792,1769699451804,-151.0,0.00017997,2]
[403969794,1769699451814,-150.0,0.00017999,2]
[403969796,1769699451825,-150.0,0.00017999,2]
[403969798,1769699451835,-150.0,0.00017999,2]
[403969800,1769699451846,-150.0,0.00017999,2]
[403969802,1769699451855,-289.02704058,0.00017999,2]
[403969804,1769699451864,-1135.16674727,0.00017999,5]
[403969806,1769699451874,-666.0,0.00017999,2]
[403969808,1769699451882,-300.0,0.00017999,2]
[403969810,1769699451892,-500.0,0.00017999,2]
[403969812,1769699451901,-500.0,0.00017999,2]
[403969814,1769699451910,-584.3,0.00017999,2]
[403969816,1769699451920,-666.0,0.00017999,2]
[403969818,1769699451929,-300.0,0.00017999,2]
[403969820,1769699451939,-300.0,0.00017999,2]
[403969822,1769699451948,-666.0,0.00017999,2]
[403969824,1769699451957,-500.0,0.00017999,2]
[403969826,1769699451966,-500.0,0.00017999,2]
[403969828,1769699451975,-500.0,0.00017999,2]
[403969830,1769699451985,-361.27838547,0.00017999,2]
[403969832,1769699451995,-151.0,0.00017999,2]
[403969834,1769699452004,-151.0,0.00017999,2]
[403969836,1769699452013,-151.0,0.00017999,2]
[403969838,1769699452022,-151.0,0.00017999,2]
[403969840,1769699452032,-151.0,0.00017999,2]
[403969842,1769699452042,-151.0,0.00017999,2]
[403969844,1769699452051,-29302.33068823,0.00018,2]
[403969846,1769699452062,-1023.78057505,0.00018,2]
[403969849,1769699452081,-23199.89749439,0.00018,2]
[403969855,1769699452124,-17294.19999999,0.00018,2]
[403969857,1769699452135,-28272.52426398,0.00018,2]
[403969859,1769699452146,-520.128,0.00018,2]
[403969861,1769699452156,-86060.90571584,0.00018,2]
[403969863,1769699452168,-16272.09438808,0.00018,2]
[403969866,1769699452179,-366.77809616,0.00018,2]
[403969869,1769699452198,-4273.67723231,0.00018,2]
[403969872,1769699452233,-1617.07638246,0.00018,2]
[403969874,1769699452257,-20624.86958555,0.00018,2]
[403969876,1769699452284,-19211.89504828,0.00018,2]
[403969878,1769699452309,-3895.37606078,0.00018,2]
[403969880,1769699452334,-616.56847284,0.00018,2]
[403969883,1769699452359,-10557.09705214,0.00018,2]
[403969932,1769699452880,-15117.37481469,0.00017473,2]
[403969934,1769699452891,-521.41084093,0.000176,3]
[403969935,1769699452900,-165196.42308692,0.00018,2]
[403969936,1769699452950,-1200.0,0.00018,2]
[403969937,1769699452961,-4165.64834517,0.00018,2]
[403969938,1769699453008,-7345.0,0.00018,2]
[403969939,1769699453021,-707.19996137,0.00018,2]
[403969941,1769699453032,-8797.40866396,0.00018,2]
[403969942,1769699453044,-289.16,0.00018,2]
[403969951,1769699453656,-1613.6,0.00018,2]
[403969952,1769699453672,-730.61577994,0.00018,2]
[403969953,1769699453683,-1370.66,0.00018,2]
[403969954,1769699453695,-85629.95582433,0.00018,2]
[403969955,1769699453706,-9100.00036074,0.00018,2]
[403969956,1769699453718,-303.18038746,0.00018,2]
[403969957,1769699454176,-3359.99999999,0.00018,2]
[403969958,1769699454187,-1604.94365407,0.00018,2]
[403969959,1769699454199,-43250.0,0.00018,2]
[403969961,1769699454211,-219983.74240827,0.00018,2]
[403969963,1769699454224,-57374.30279627,0.00018,2]
[403969965,1769699454237,-287.0,0.00018,2]
[403969967,1769699454249,-2612.34,0.00018,2]
[403969969,1769699454261,-400.03000008,0.00018,2]
[403969971,1769699454288,-439.375,0.00018,2]
[403969972,1769699454316,-86500.0,0.00018,2]
[403969974,1769699454337,-23025.38898018,0.00018,2]
[403969975,1769699454373,-2162.5,0.00018,2]
[403969977,1769699454503,-473.75857156,0.00018,2]
[403969978,1769699454546,-871.26956706,0.00018,2]
[403970031,1769699502831,1135.16674727,0.00013957,5]
[403970032,1769699521640,900.0,0.000137,5]
[403970034,1769699523845,1800.0,0.000138,5]
[403970035,1769699526358,2700.0,0.000139,5]
[403970132,1769699835820,1000.0,0.00013786,2]
[403970134,1769699875799,162.06,0.00013422,2]
[403970135,1769699888826,294.9156602,0.00014255,3]
[403970136,1769699897733,328.38,0.00013371,2]
[403970141,1769699954347,182.92,0.00013261,3]
[403970172,1769700062446,175.45416476,0.00013786,2]
[403970173,1769700092718,4024.36415815,0.00013541,2]
[403970174,1769700092740,48.39284185,0.00013541,2]
[403970175,1769700092999,299.227,0.00013541,2]
[403970176,1769700114861,1081.35405704,0.00013744,2]
[403970177,1769700142669,8571.02610111,0.00013744,2]
[403970178,1769700142690,10000.0,0.00013744,2]
[403970179,1769700142711,5270.20871435,0.00013744,2]
[403970180,1769700165785,773.5995239,0.00013731,2]
[403970181,1769700190389,854.0,0.00021,120]
[403970183,1769700195939,1000.0,0.00013092,2]
[403970184,1769700207704,2956.19176175,0.00013731,2]
[403970185,1769700207727,10000.0,0.00013731,2]
[403970186,1769700207758,10000.01,0.00013731,2]
[403970187,1769700207788,4370.95845028,0.00013731,2]
[403970470,1769700432716,600.0,0.000136,4]
[403970471,1769700434874,1200.0,0.000137,5]
[403970472,1769700436943,1900.0,0.000138,5]
[403970473,1769700439302,2500.0,0.000139,5]
[403970475,1769700465282,166.66,0.00013561,2]
[403970476,1769700509618,-300.0,0.00013808,2]
[403970477,1769700509640,-572.0,0.00013808,2]
[403970478,1769700509663,-201.67245851,0.00013808,2]
[403970479,1769700509685,-195.0,0.00013808,2]
[403970480,1769700509709,-371.14335507,0.00013809,2]
[403970481,1769700509731,-200.0,0.00013809,2]
[403970482,1769700509753,-500.0,0.00013809,2]
[403970483,1769700509775,-151.0,0.00013809,2]
[403970484,1769700509797,-151.0,0.00013809,2]
[403970485,1769700509820,-151.0,0.00013809,2]
[403970486,1769700509843,-151.0,0.00013809,2]
[403970487,1769700509866,-151.0,0.00013809,2]
[403970488,1769700509888,-107.52418642,0.00013809,2]
[403970492,1769700528944,10000.01,0.00013758,2]
[403970493,1769700528985,10000.01,0.00013758,2]
[403970494,1769700529025,1457.09133386,0.00013758,2]
[403970495,1769700547680,200.0,0.00013699,2]
[403970497,1769700550457,-43.47581358,0.00013809,2]
[403970498,1769700550481,-151.0,0.00013809,2]
[403970499,1769700550507,-151.0,0.00013809,2]
[403970500,1769700550532,-151.0,0.00013809,2]
[403970501,1769700550813,-151.0,0.00013809,2]
[403970502,1769700550839,-151.0,0.00013809,2]
[403970503,1769700550864,-600.0,0.0001381,2]
[403970504,1769700550892,-195.0,0.00013811,2]
[403970505,1769700550917,-195.0,0.00013813,2]
[403970506,1769700550943,-151.0,0.00013814,2]
[403970507,1769700550968,-151.0,0.00013814,2]
[403970508,1769700550993,-250.0,0.00013814,2]
[403970509,1769700551019,-300.0,0.00013814,2]
[403970510,1769700551044,-203.09130154,0.00013814,2]
[403970511,1769700551068,-500.0,0.00013814,2]
[403970512,1769700551092,-277.68237912,0.00013814,2]
[403970513,1769700551117,-300.0,0.00013814,2]
[403970514,1769700551144,-1200.0,0.00013815,2]
[403970515,1769700551169,-150.0,0.00013815,2]
[403970516,1769700551201,-94728.75050576,0.00013817,2]
[403970517,1769700558398,8342.91866614,0.00013717,2]
[403970518,1769700558426,10000.01,0.00013717,2]
[403970519,1769700558454,10000.01,0.00013717,2]
[403970520,1769700558484,10000.01,0.00013717,2]
[403970521,1769700558512,10000.01,0.00013717,2]
[403970522,1769700558542,10000.01,0.00013717,2]
[403970523,1769700558572,3690.58903386,0.00013717,2]
[403970524,1769700563938,2500.0,0.00013717,2]
[403970541,1769700606201,1285.85,0.00013133,2]
[403970542,1769700606453,1285.85,0.00013174,2]